fUSD/lending_fUSD_20241027
["ID","MTS","AMOUNT","RATE_DAILY","PERIOD"]
[340879165,1730001034269,-1000.0,0.00040477,2]
[340879166,1730001034278,-1000.0,0.00040477,2]
[340879167,1730001034287,-1000.0,0.00040477,2]
[340879168,1730001034296,-366.3927,0.00040477,2]
[340879169,1730001034306,-685.335768,0.0004048,14]
[340879170,1730001034315,-685.335768,0.0004048,14]
[340879171,1730001034324,-151.0,0.0004048,14]
[340879172,1730001034333,-151.0,0.0004048,14]
[340879173,1730001034342,-151.0,0.0004048,14]
[340879174,1730001034352,-182.825872,0.0004048,7]
[340879175,1730001034361,-182.825872,0.0004048,7]
[340879176,1730001034371,-182.825872,0.0004048,7]
[340879177,1730001034380,-182.825872,0.0004048,7]
[340879178,1730001034389,-182.825872,0.0004048,7]
[340879179,1730001034399,-182.825872,0.0004048,7]
[340879180,1730001034408,-151.0,0.0004048,14]
[340879181,1730001034420,-151.0,0.0004048,14]
[340879182,1730001034429,-151.0,0.0004048,14]
[340879183,1730001034438,-151.0,0.0004048,14]
[340879184,1730001034447,-151.0,0.0004048,14]
[340879185,1730001034456,-151.0,0.0004048,14]
[340879186,1730001034465,-151.0,0.0004048,14]
[340879187,1730001034474,-151.902828,0.0004048,14]
[340879188,1730001034483,-151.0,0.0004048,14]
[340879189,1730001034493,-151.0,0.0004048,14]
[340879190,1730001034503,-151.0,0.0004048,14]
[340879191,1730001034512,-151.0,0.0004048,14]
[340879192,1730001034522,-151.0,0.0004048,14]
[340879193,1730001034531,-151.0,0.0004048,14]
[340879194,1730001034540,-151.0,0.0004048,14]
[340879195,1730001034549,-173.165388,0.0004048,14]
[340879196,1730001034558,-173.165388,0.0004048,14]
[340879197,1730001034567,-151.0,0.0004048,14]
[340879198,1730001034577,-151.0,0.0004048,14]
[340879199,1730001034586,-151.0,0.0004048,14]
[340879200,1730001034596,-151.0,0.0004048,14]
[340879201,1730001034605,-158.717385,0.0004048,14]
[340879202,1730001034615,-151.0,0.0004048,14]
[340879203,1730001034624,-151.0,0.0004048,14]
[340879204,1730001034634,-151.0,0.0004048,2]
[340879205,1730001034643,-151.0,0.0004048,2]
[340879206,1730001034653,-151.0,0.0004048,14]
[340879207,1730001034662,-240.314909,0.0004048,14]
[340879208,1730001034671,-217.63304,0.0004048,14]
[340879209,1730001034680,-217.63304,0.0004048,14]
[340879210,1730001034690,-304.332042,0.0004048,14]
[340879211,1730001034699,-304.332042,0.0004048,14]
[340879212,1730001034708,-423.947733,0.0004048,14]
[340879213,1730001034717,-423.947733,0.0004048,14]
[340879214,1730001034727,-151.0,0.0004048,14]
[340879215,1730001034736,-151.0,0.0004048,14]
[340879216,1730001034745,-276.265633,0.0004048,14]
[340879217,1730001034755,-276.265633,0.0004048,14]
[340879218,1730001034764,-234.317708,0.0004048,14]
[340879219,1730001034773,-234.317708,0.0004048,14]
[340879220,1730001034782,-151.0,0.0004048,14]
[340879221,1730001034792,-2896.2652,0.0004048,14]
[340879222,1730001034801,-2896.2652,0.0004048,14]
[340879223,1730001034810,-8370.56148574,0.00040487,9]
[340879224,1730001034819,-685.335768,0.0004049,14]
[340879225,1730001034829,-685.335768,0.0004049,14]
[340879226,1730001034839,-154.870886,0.0004049,14]
[340879227,1730001034848,-182.825872,0.0004049,7]
[340879228,1730001034858,-182.82587133,0.0004049,7]
[340879229,1730001034868,-151.0,0.0004049,14]
[340879230,1730001034878,-253.501216,0.0004049,14]
[340879231,1730001034887,-151.0,0.0004049,14]
[340879232,1730001034897,-156.113823,0.0004049,14]
[340879233,1730001034906,-151.0,0.0004049,14]
[340879234,1730001034915,-151.0,0.0004049,14]
[340879235,1730001034925,-151.0,0.0004049,14]
[340879236,1730001034934,-151.0,0.0004049,14]
[340879237,1730001034944,-6393.917428,0.000405,2]
[340879238,1730001034953,-8370.56148574,0.0004056,9]
[340879239,1730001034963,-151.0,0.0004057,14]
[340879240,1730001034974,-151.0,0.0004057,14]
[340879241,1730001034984,-151.0,0.0004057,14]
[340879242,1730001034994,-151.0,0.0004057,14]
[340879243,1730001035007,-151.0,0.0004057,14]
[340879244,1730001035016,-151.0,0.0004057,14]
[340879245,1730001035028,-173.165388,0.0004057,14]
[340879246,1730001035037,-173.165388,0.0004057,14]
[340879247,1730001035048,-261.086858,0.0004057,14]
[340879248,1730001035057,-151.0,0.0004057,14]
[340879249,1730001035067,-151.0,0.0004057,14]
[340879250,1730001035076,-151.0,0.0004057,14]
[340879251,1730001035086,-151.0,0.0004057,14]
[340879252,1730001035095,-586.75935,0.0004057,14]
[340879253,1730001035104,-586.75935,0.0004057,14]
[340879254,1730001035114,-151.0,0.0004057,14]
[340879255,1730001035123,-222.546785,0.0004057,14]
[340879256,1730001035132,-151.0,0.0004057,14]
[340879257,1730001035141,-151.0,0.0004057,14]
[340879258,1730001035150,-151.0,0.0004057,14]
[340879259,1730001035159,-151.0,0.0004057,14]
[340879260,1730001035168,-151.0,0.0004057,14]
[340879261,1730001035178,-151.0,0.0004057,14]
[340879262,1730001035189,-151.0,0.0004057,14]
[340879263,1730001035198,-151.0,0.0004057,14]
[340879264,1730001035208,-151.0,0.0004057,14]
[340879265,1730001035217,-196.620671,0.0004057,14]
[340879266,1730001035226,-196.620671,0.0004057,14]
[340879267,1730001035235,-151.0,0.0004057,14]
[340879268,1730001035244,-151.0,0.0004057,14]
[340879269,1730001035255,-242.668049,0.0004057,14]
[340879270,1730001035268,-151.0,0.0004057,14]
[340879271,1730001035277,-423.947733,0.0004057,14]
[340879272,1730001035286,-423.947733,0.0004057,14]
[340879273,1730001035295,-276.265633,0.0004057,14]
[340879274,1730001035304,-276.265633,0.0004057,14]
[340879275,1730001035314,-234.317708,0.0004057,14]
[340879276,1730001035323,-234.317708,0.0004057,14]
[340879277,1730001035332,-685.335768,0.0004058,14]
[340879278,1730001035342,-685.335768,0.0004058,14]
[340879279,1730001035351,-151.0,0.0004058,14]
[340879280,1730001035360,-151.0,0.0004058,14]
[340879281,1730001035370,-151.0,0.0004058,14]
[340879282,1730001035379,-151.0,0.0004058,14]
[340879283,1730001035388,-151.0,0.0004058,14]
[340879284,1730001035397,-151.0,0.0004058,14]
[340879285,1730001035406,-151.0,0.0004058,14]
[340879286,1730001035415,-151.0,0.0004058,14]
[340879287,1730001035423,-154.944452,0.0004058,14]
[340879288,1730001035433,-151.0,0.0004058,14]
[340879289,1730001035442,-151.0,0.0004058,14]
[340879290,1730001035451,-151.0,0.0004058,14]
[340879291,1730001035460,-151.0,0.0004058,14]
[340879292,1730001035468,-151.0,0.0004058,14]
[340879293,1730001035477,-151.0,0.0004058,14]
[340879294,1730001035486,-151.0,0.0004058,2]
[340879295,1730001035495,-151.0,0.0004058,2]
[340879296,1730001035505,-151.0,0.0004058,14]
[340879297,1730001035514,-217.63304,0.0004058,14]
[340879298,1730001035523,-217.63304,0.0004058,14]
[340879299,1730001035533,-304.332042,0.0004058,14]
[340879300,1730001035543,-304.332042,0.0004058,14]
[340879301,1730001035552,-151.0,0.0004058,14]
[340879302,1730001035561,-151.0,0.0004058,14]
[340879303,1730001035570,-151.0,0.0004058,14]
[340879304,1730001035579,-2896.2652,0.0004058,14]
[340879305,1730001035588,-2896.2652,0.0004058,14]
[340879306,1730001035597,-685.335768,0.0004059,14]
[340879307,1730001035607,-685.335768,0.0004059,14]
[340879308,1730001035616,-217.0,0.00040595,2]
[340879309,1730001035625,-4271.6101525,0.00040599,15]
[340879310,1730001035634,-685.335768,0.0004065,14]
[340879311,1730001035643,-685.335768,0.0004065,14]
[340879312,1730001035652,-151.0,0.0004065,14]
[340879313,1730001035662,-152.338319,0.0004065,14]
[340879314,1730001035671,-199.858222,0.0004065,7]
[340879315,1730001035680,-199.858222,0.0004065,7]
[340879316,1730001035689,-8370.56148574,0.0004065,9]
[340879317,1730001035698,-163.96575925,0.00040659,2]
[340879318,1730001035707,-685.335768,0.0004066,14]
[340879319,1730001035716,-685.335768,0.0004066,14]
[340879320,1730001035725,-685.335768,0.0004066,14]
[340879321,1730001035734,-685.335768,0.0004066,14]
[340879322,1730001035743,-151.0,0.0004066,14]
[340879323,1730001035754,-151.0,0.0004066,14]
[340879324,1730001035763,-151.0,0.0004066,14]
[340879325,1730001035772,-151.0,0.0004066,14]
[340879326,1730001035781,-151.0,0.0004066,14]
[340879327,1730001035790,-151.0,0.0004066,14]
[340879328,1730001035799,-173.165388,0.0004066,14]
[340879329,1730001035808,-173.165388,0.0004066,14]
[340879330,1730001035818,-8370.56148574,0.00040669,9]
[340879331,1730001035827,-151.0,0.00040669,14]
[340879332,1730001035836,-151.0,0.00040669,14]
[340879333,1730001035846,-586.75935,0.00040669,14]
[340879334,1730001035855,-586.75935,0.00040669,14]
[340879335,1730001035864,-151.0,0.00040669,14]
[340879336,1730001035873,-151.0,0.00040669,14]
[340879337,1730001035882,-154.850279,0.00040669,14]
[340879338,1730001035891,-151.0,0.00040669,14]
[340879339,1730001035899,-151.0,0.00040669,14]
[340879340,1730001035909,-151.0,0.00040669,14]
[340879341,1730001035918,-151.0,0.00040669,14]
[340879342,1730001035927,-196.620671,0.00040669,14]
[340879343,1730001035936,-196.620671,0.00040669,14]
[340879344,1730001035945,-151.0,0.00040669,14]
[340879345,1730001035954,-151.0,0.00040669,14]
[340879346,1730001035963,-685.335768,0.0004067,14]
[340879347,1730001035972,-685.335768,0.0004067,14]
[340879348,1730001035981,-151.0,0.0004067,14]
[340879349,1730001035990,-170.597629,0.0004067,14]
[340879350,1730001036001,-151.0,0.0004067,14]
[340879351,1730001036012,-151.0,0.0004067,14]
[340879352,1730001036021,-151.0,0.0004067,14]
[340879353,1730001036029,-151.0,0.0004067,14]
[340879354,1730001036039,-151.0,0.0004067,14]
[340879355,1730001036048,-151.0,0.0004067,14]
[340879356,1730001036057,-151.0,0.0004067,14]
[340879357,1730001036066,-151.0,0.00040674,14]
[340879358,1730001036075,-151.0,0.00040674,14]
[340879359,1730001036160,-151.0,0.00040674,14]
[340879360,1730001036170,-151.0,0.00040674,14]
[340879361,1730001036180,-150.01,0.00040679,2]
[340879362,1730001036188,-685.335768,0.00040679,14]
[340879363,1730001036197,-685.335759,0.00040679,14]
[340879364,1730001036206,-1276.95627638,0.00040679,2]
[340879365,1730001036215,-423.947733,0.00040679,14]
[340879366,1730001036224,-423.947733,0.00040679,14]
[340879367,1730001036233,-234.317708,0.00040679,14]
[340879368,1730001036242,-234.317708,0.00040679,14]
[340879369,1730001036252,-151.0,0.0004068,14]
[340879370,1730001036262,-151.0,0.0004068,14]
[340879371,1730001036270,-199.858222,0.0004068,7]
[340879372,1730001036279,-199.858222,0.0004068,7]
[340879373,1730001036288,-151.0,0.0004068,14]
[340879374,1730001036297,-151.0,0.0004068,14]
[340879375,1730001036306,-151.0,0.0004068,14]
[340879376,1730001036315,-151.0,0.0004068,14]
[340879377,1730001036324,-151.0,0.0004068,14]
[340879378,1730001036333,-151.0,0.0004068,14]
[340879379,1730001036342,-151.0,0.0004068,2]
[340879380,1730001036351,-151.0,0.0004068,2]
[340879381,1730001036360,-154.971044,0.0004068,14]
[340879382,1730001036369,-217.63304,0.0004068,14]
[340879383,1730001036378,-217.63304,0.0004068,14]
[340879384,1730001036388,-304.332042,0.0004068,14]
[340879385,1730001036398,-304.332042,0.0004068,14]
[340879386,1730001036407,-151.0,0.0004068,14]
[340879387,1730001036416,-151.0,0.0004068,14]
[340879388,1730001036425,-276.265633,0.0004068,14]
[340879389,1730001036434,-276.265633,0.0004068,14]
[340879390,1730001036443,-8370.56148574,0.00040684,9]
[340879391,1730001036452,-151.0,0.00040684,14]
[340879392,1730001036461,-151.0,0.00040684,14]
[340879393,1730001036470,-151.0,0.00040684,14]
[340879394,1730001036480,-155.979711,0.00040684,14]
[340879395,1730001036492,-153.281048,0.00040684,14]
[340879396,1730001036503,-151.0,0.00040684,14]
[340879397,1730001036513,-173.165388,0.00040684,14]
[340879398,1730001036522,-173.165388,0.00040684,14]
[340879399,1730001036532,-151.0,0.00040684,14]
[340879400,1730001036542,-2896.2652,0.00040684,14]
[340879401,1730001036551,-2896.2652,0.00040684,14]
[340879402,1730001036560,-1455.6126537,0.00040686,2]
[340879403,1730001036570,-151.0,0.00040694,14]
[340879404,1730001036580,-151.0,0.00040694,14]
[340879405,1730001036589,-151.0,0.00040694,14]
[340879406,1730001036598,-151.0,0.00040694,14]
[340879407,1730001036608,-151.0,0.00040694,14]
[340879408,1730001036617,-151.0,0.00040694,14]
[340879409,1730001036627,-154.555854,0.00040694,14]
[340879410,1730001036636,-586.75935,0.00040694,14]
[340879411,1730001036645,-586.75935,0.00040694,14]
[340879412,1730001036655,-151.0,0.00040694,14]
[340879413,1730001036664,-151.0,0.00040694,14]
[340879414,1730001036673,-151.0,0.00040694,14]
[340879415,1730001036682,-151.0,0.00040694,14]
[340879416,1730001036691,-151.0,0.00040694,14]
[340879417,1730001036700,-151.0,0.00040694,14]
[340879418,1730001036710,-196.620671,0.00040694,14]
[340879419,1730001036719,-196.620671,0.00040694,14]
[340879420,1730001036728,-151.0,0.00040694,14]
[340879421,1730001036737,-151.0,0.00040694,14]
[340879422,1730001036747,-151.0,0.00040694,14]
[340879423,1730001036756,-151.0,0.00040694,14]
[340879424,1730001036765,-151.0,0.00040694,14]
[340879425,1730001036774,-151.0,0.00040694,14]
[340879426,1730001036783,-151.0,0.00040694,14]
[340879427,1730001036793,-151.0,0.00040694,14]
[340879428,1730001036802,-151.0,0.00040694,2]
[340879429,1730001036811,-151.0,0.00040694,2]
[340879430,1730001036820,-217.63304,0.00040694,14]
[340879431,1730001036829,-217.63304,0.00040694,14]
[340879432,1730001036839,-304.332042,0.00040694,14]
[340879433,1730001036847,-304.332042,0.00040694,14]
[340879434,1730001036857,-423.947733,0.00040694,14]
[340879435,1730001036866,-423.947733,0.00040694,14]
[340879436,1730001036876,-151.0,0.00040694,14]
[340879437,1730001036884,-151.0,0.00040694,14]
[340879438,1730001036894,-234.317708,0.00040694,14]
[340879439,1730001036903,-234.317708,0.00040694,14]
[340879440,1730001036912,-151.38523291,0.000407,2]
[340879441,1730001036921,-8370.56148574,0.00040714,9]
[340879442,1730001036930,-4859.2600323,0.00040724,2]
[340879443,1730001036939,-14483.5400273,0.00040724,2]
[340879444,1730001036950,-276.265633,0.00040724,14]
[340879445,1730001036959,-276.265633,0.00040724,14]
[340879446,1730001036968,-411.09,0.00040954,2]
[340879447,1730001036979,-199.52811566,0.00041,30]
[340879448,1730001036989,-215.38721878,0.00041,30]
[340879449,1730001036998,-151.0,0.00041,14]
[340879450,1730001037008,-151.0,0.00041,14]
[340879451,1730001037017,-277.264325,0.00041,14]
[340879452,1730001037028,-151.0,0.00041,14]
[340879453,1730001037037,-151.0,0.00041,14]
[340879454,1730001037047,-151.0,0.00041,14]
[340879455,1730001037056,-151.0,0.00041,14]
[340879456,1730001037065,-156.08564729,0.00041014,28]
[340879457,1730001037075,-4271.6101525,0.00041018,15]
[340879458,1730001037085,-150.0,0.00041096,2]
[340879459,1730001037094,-156.18497669,0.00041376,60]
[340879460,1730001037103,-4271.6101525,0.00041437,15]
[340879461,1730001037112,-151.0,0.00041697,14]
[340879462,1730001037121,-151.0,0.00041697,14]
[340879463,1730001037130,-151.0,0.00041697,14]
[340879464,1730001037139,-188.981297,0.00041697,14]
[340879465,1730001037148,-173.165388,0.00041697,14]
[340879466,1730001037157,-173.165388,0.00041697,14]
[340879467,1730001037167,-1471.0,0.000417,5]
[340879468,1730001037176,-151.0,0.000417,14]
[340879469,1730001037186,-998.69464296,0.00041742,10]
[340879470,1730001037195,-156.08564729,0.00041749,28]
[340879471,1730001037206,-2719.0,0.00041831,3]
[340879472,1730001037217,-168.27072,0.00041831,14]
[340879473,1730001037226,-2896.2652,0.00041831,14]
[340879474,1730001037236,-2896.2652,0.00041831,14]
[340879475,1730001037247,-4271.6101525,0.00041856,15]
[340879476,1730001037257,-968.46159066,0.00041865,18]
[340879477,1730001037267,-8370.56148574,0.00041893,9]
[340879478,1730001037276,-586.75935,0.00041903,14]
[340879479,1730001037285,-586.75935,0.00041903,14]
[340879480,1730001037295,-151.0,0.00041903,14]
[340879481,1730001037303,-156.700425,0.00041903,14]
[340879482,1730001037313,-151.0,0.00041903,14]
[340879483,1730001037322,-151.0,0.00041903,14]
[340879484,1730001037331,-151.0,0.00041903,14]
[340879485,1730001037340,-151.0,0.00041903,14]
[340879486,1730001037349,-151.0,0.00041903,14]
[340879487,1730001037358,-151.0,0.00041903,14]
[340879488,1730001037367,-267.811854,0.00041903,14]
[340879489,1730001037376,-151.0,0.00041903,14]
[340879490,1730001037385,-151.0,0.00041903,2]
[340879491,1730001037395,-151.0,0.00041903,2]
[340879492,1730001037404,-217.63304,0.00041903,14]
[340879493,1730001037415,-217.63304,0.00041903,14]
[340879494,1730001037424,-304.332042,0.00041903,14]
[340879495,1730001037435,-304.332042,0.00041903,14]
[340879496,1730001037444,-423.947733,0.00041903,14]
[340879497,1730001037454,-423.947733,0.00041903,14]
[340879498,1730001037464,-151.0,0.00041903,14]
[340879499,1730001037473,-151.0,0.00041903,14]
[340879500,1730001037482,-234.317708,0.00041903,14]
[340879501,1730001037492,-234.317708,0.00041903,14]
[340879502,1730001037502,-151.0,0.00041945,14]
[340879503,1730001037511,-151.0,0.00041945,14]
[340879504,1730001037520,-151.0,0.00041945,14]
[340879505,1730001037531,-151.0,0.00041945,14]
[340879506,1730001037540,-152.890364,0.00041945,14]
[340879507,1730001037550,-160.342661,0.00041945,14]
[340879508,1730001037561,-151.0,0.00041945,14]
[340879509,1730001037570,-289.235832,0.00041945,14]
[340879510,1730001037580,-196.620671,0.00041945,14]
[340879511,1730001037589,-196.620671,0.00041945,14]
[340879512,1730001037599,-151.0,0.00041945,14]
[340879513,1730001037609,-151.0,0.00041945,14]
[340879514,1730001037618,-151.0,0.00041945,14]
[340879515,1730001037628,-8370.56148574,0.00041945,9]
[340879516,1730001037636,-436.62204984,0.00041955,9]
[340879517,1730001037646,-151.0,0.00041955,14]
[340879518,1730001037655,-151.0,0.00041955,14]
[340879519,1730001037664,-151.0,0.00041955,14]
[340879520,1730001037674,-151.0,0.00041955,14]
[340879521,1730001037683,-151.0,0.00041955,14]
[340879522,1730001037692,-151.0,0.00041955,14]
[340879523,1730001037702,-173.165388,0.00041955,14]
[340879524,1730001037711,-151.0,0.00041955,14]
[340879525,1730001037720,-173.165388,0.00041955,14]
[340879526,1730001037730,-151.0,0.00041955,14]
[340879527,1730001037740,-167.369145,0.00041955,14]
[340879528,1730001037751,-151.0,0.00041955,14]
[340879529,1730001037760,-151.0,0.00041955,14]
[340879530,1730001037770,-586.75935,0.00041955,14]
[340879531,1730001037779,-586.75935,0.00041955,14]
[340879532,1730001037789,-151.0,0.00041955,14]
[340879533,1730001037798,-151.0,0.00041955,14]
[340879534,1730001037807,-151.0,0.00041955,14]
[340879535,1730001037816,-151.0,0.00041955,14]
[340879536,1730001037826,-196.620671,0.00041955,14]
[340879537,1730001037836,-196.620671,0.00041955,14]
[340879538,1730001037845,-151.0,0.00041955,14]
[340879539,1730001037855,-151.0,0.00041955,14]
[340879540,1730001037864,-151.0,0.00041955,14]
[340879541,1730001037873,-276.265633,0.00041955,14]
[340879542,1730001037957,-276.265633,0.00041955,14]
[340879543,1730001037966,-500.0,0.00041964,2]
[340879544,1730001037976,-151.0,0.00041965,14]
[340879545,1730001037985,-248.17207,0.00041965,14]
[340879546,1730001037994,-151.0,0.00041965,14]
[340879547,1730001038004,-151.0,0.00041965,14]
[340879548,1730001038014,-199.858222,0.00041965,7]
[340879549,1730001038023,-199.858222,0.00041965,7]
[340879550,1730001038032,-199.858222,0.00041965,7]
[340879551,1730001038042,-199.858222,0.00041965,7]
[340879552,1730001038051,-151.0,0.00041965,14]
[340879553,1730001038060,-151.0,0.00041965,14]
[340879554,1730001038069,-151.0,0.00041965,14]
[340879555,1730001038079,-151.0,0.00041965,14]
[340879556,1730001038088,-151.0,0.00041965,14]
[340879557,1730001038098,-187.547985,0.00041965,14]
[340879558,1730001038108,-157.0845624,0.00041965,14]
[340879559,1730001038117,-151.0,0.00041965,14]
[340879560,1730001038127,-151.0,0.00041965,14]
[340879561,1730001038136,-151.0,0.00041965,14]
[340879562,1730001038146,-151.0,0.00041965,14]
[340879563,1730001038155,-173.165388,0.00041965,14]
[340879564,1730001038164,-173.165388,0.00041965,14]
[340879565,1730001038174,-151.0,0.00041965,14]
[340879566,1730001038183,-151.0,0.00041965,14]
[340879567,1730001038192,-151.0,0.00041965,14]
[340879568,1730001038201,-173.165388,0.00041965,14]
[340879569,1730001038211,-173.165388,0.00041965,14]
[340879570,1730001038220,-151.906891,0.00041965,14]
[340879571,1730001038230,-2896.2652,0.00042063,14]
[340879572,1730001038239,-2896.2652,0.00042063,14]
[340879573,1730001038249,-204.40107823,0.00042073,10]
[340879574,1730001038258,-186.420995,0.00042073,14]
[340879575,1730001038268,-151.0,0.00042073,14]
[340879576,1730001038277,-173.165388,0.00042073,14]
[340879577,1730001038287,-173.165388,0.00042073,14]
[340879578,1730001038297,-220.576837,0.00042073,14]
[340879579,1730001038306,-151.0,0.00042073,14]
[340879580,1730001038316,-377.34,0.00042111,7]
[340879581,1730001038325,-150.0,0.00042177,2]
[340879582,1730001038334,-151.0,0.00042247,14]
[340879583,1730001038343,-151.0,0.00042247,14]
[340879584,1730001038352,-4271.6101525,0.00042276,15]
[340879585,1730001038361,-423.947733,0.00042309,14]
[340879586,1730001038371,-423.947733,0.00042309,14]
[340879587,1730001038380,-234.317708,0.00042309,14]
[340879588,1730001038390,-234.317708,0.00042309,14]
[340879589,1730001038400,-8370.56148574,0.00042381,9]
[340879590,1730001038409,-151.0,0.00042391,14]
[340879591,1730001038418,-151.0,0.00042391,14]
[340879592,1730001038428,-151.0,0.00042391,14]
[340879593,1730001038437,-151.0,0.00042391,14]
[340879594,1730001038447,-151.0,0.00042391,14]
[340879595,1730001038456,-151.0,0.00042391,2]
[340879596,1730001038466,-151.0,0.00042391,2]
[340879597,1730001038475,-217.63304,0.00042391,14]
[340879598,1730001038485,-217.63304,0.00042391,14]
[340879599,1730001038496,-304.332042,0.00042391,14]
[340879600,1730001038508,-304.332042,0.00042391,14]
[340879601,1730001038517,-151.0,0.00042391,14]
[340879602,1730001038527,-287.44972,0.00042391,14]
[340879603,1730001038537,-586.75935,0.00042401,14]
[340879604,1730001038546,-586.75935,0.00042401,14]
[340879605,1730001038556,-151.0,0.00042401,14]
[340879606,1730001038566,-239.37085,0.00042401,14]
[340879607,1730001038575,-151.0,0.00042401,14]
[340879608,1730001038585,-156.08564729,0.00042483,28]
[340879611,1730001038594,-25111.6844572,0.0004249,9]
[340879613,1730001038604,-436.62204984,0.0004249,9]
[340879614,1730001038614,-160.56428842,0.000425,17]
[340879615,1730001038623,-500.0,0.000425,120]
[340879616,1730001038632,-500.0,0.000425,120]
[340879617,1730001038642,-500.0,0.000425,120]
[340879618,1730001038651,-500.0,0.000425,120]
[340879619,1730001038661,-500.0,0.000425,120]
[340879620,1730001038671,-500.0,0.000425,120]
[340879621,1730001038680,-500.0,0.000425,120]
[340879622,1730001038690,-500.0,0.000425,120]
[340879623,1730001038699,-500.0,0.000425,120]
[340879624,1730001038708,-500.0,0.000425,120]
[340879625,1730001038718,-500.0,0.000425,120]
[340879626,1730001038727,-500.0,0.000425,120]
[340879627,1730001038737,-500.0,0.000425,120]
[340879628,1730001038746,-500.0,0.000425,120]
[340879629,1730001038757,-500.0,0.000425,120]
[340879630,1730001038766,-500.0,0.000425,120]
[340879631,1730001038775,-500.0,0.000425,120]
[340879632,1730001038785,-500.0,0.000425,120]
[340879633,1730001038795,-500.0,0.000425,120]
[340879634,1730001038804,-500.0,0.000425,120]
[340879635,1730001038813,-500.0,0.000425,120]
[340879636,1730001038823,-500.0,0.000425,120]
[340879637,1730001038832,-500.0,0.000425,120]
[340879638,1730001038842,-500.0,0.000425,120]
[340879639,1730001038851,-500.0,0.000425,120]
[340879640,1730001038861,-500.0,0.000425,120]
[340879641,1730001038870,-500.0,0.000425,120]
[340879642,1730001038879,-500.0,0.000425,120]
[340879643,1730001038889,-500.0,0.000425,120]
[340879644,1730001038898,-500.0,0.000425,120]
[340879645,1730001038907,-500.0,0.000425,120]
[340879646,1730001038916,-500.0,0.000425,120]
[340879647,1730001038925,-500.0,0.000425,120]
[340879648,1730001038935,-500.0,0.000425,120]
[340879649,1730001038945,-500.0,0.000425,120]
[340879650,1730001038956,-500.0,0.000425,120]
[340879651,1730001038967,-500.0,0.000425,120]
[340879652,1730001038981,-500.0,0.000425,120]
[340879653,1730001038992,-500.0,0.000425,120]
[340879654,1730001039002,-500.0,0.000425,120]
[340879655,1730001039011,-500.0,0.000425,120]
[340879656,1730001039022,-500.0,0.000425,120]
[340879657,1730001039032,-500.0,0.000425,120]
[340879658,1730001039043,-500.0,0.000425,120]
[340879659,1730001039052,-500.0,0.000425,120]
[340879660,1730001039063,-500.0,0.000425,120]
[340879661,1730001039074,-500.0,0.000425,120]
[340879662,1730001039083,-500.0,0.000425,120]
[340879663,1730001039092,-500.0,0.000425,120]
[340879664,1730001039102,-500.0,0.000425,120]
[340879665,1730001039111,-500.0,0.000425,120]
[340879666,1730001039120,-500.0,0.000425,120]
[340879668,1730001039129,-500.0,0.000425,120]